{"text_format":"1","workbook":"xlsx","n_sheets":2,"sheets":["10.1.2012 ","Home"],"not_rendered":{"charts":0,"images":1,"macros":1,"external_links":0,"defined_names":1,"comments":0,"pivot_tables":0},"unopened":[],"bounds":{"document_bytes":16777216,"sheet_cells":100000,"rows_first":2000,"rows_last":500,"rows_between":2000,"halvings":0,"cell_chars":16384,"cell_head_chars":4096},"cells_cut":0,"cells_raw":0,"read":"whole","date_system":"1900"}

{"sheet":"10.1.2012 ","index":0,"n_rows":505,"n_cols":12,"rows_kept":505,"cut":false,"hidden":false,"merged":[[3,0,3,4],[3,6,3,11],[0,8,0,10],[1,8,1,10],[2,8,2,10],[0,0,1,6],[2,0,2,2],[2,3,2,4]]}
["Hobble Creek Learning & Enrichment Center",null,null,null,null,null,null,null,"Total Customer Payments",null,null,{"$f":"SUMIF(G6:G500,\">1\",F6:F500)","v":13002.09}]
[null,null,null,null,null,null,null,null,"Total AMEX Payments",null,null,{"$f":"-SUM(L6:L503)","v":-73.919999999999987}]
["Customer Payment Reconciliation",null,null,"2012-10-01T12:41:01",null,null,null,null,"Total Payments Received",null,null,{"$f":"SUM(H6:H505)","v":12928.17}]
["Customer Payment Information",null,null,null,null,null,"Global Pay Batch Payment Information"]
["Customer","Date","Pmt Type","Tpe","Amount",null,"Batch Amt",null,"Date","Type","Sub Total","AMEX Exp"]
["Lori Curtis","2012-09-27T13:19:40","MasterCard","Sale",245,{"$f":"IF(OR(D6=\"Sale\",D6=\"Repeat Sale\"),E6,-E6)","v":245},9311.59,{"$f":"IF(G6=G7,\"\",G6)","v":""},"2012-10-02","Other",245]
["Pam Gosman","2012-09-27T13:22:20","MasterCard","Sale",105,{"$f":"IF(OR(D7=\"Sale\",D7=\"Repeat Sale\"),E7,-E7)","v":105},9311.59,{"$f":"IF(G7=G8,\"\",G7)","v":""},"2012-10-02","Other",350]
["Shilo Crandall","2012-09-27T13:26:04","VISA ","Sale",140,140,9311.59,"","2012-10-02","Other",490]
["Michael Nay","2012-09-27T13:27:34","VISA ","Sale",140,140,9311.59,"","2012-10-02","Other",630]
["jera foster","2012-09-27T13:29:45","VISA ","Sale",175,175,9311.59,"","2012-10-02","Other",805]
["Myra Hall","2012-09-27T13:32:42","MasterCard","Sale",105,105,9311.59,"","2012-10-02","Other",910]
["Eva Witesman","2012-09-27T13:37:35","MasterCard","Sale",315,315,9311.59,"","2012-10-02","Other",1225]
["Angelena Carlisle","2012-10-01T10:51:14","VISA ","Repeat Sale",118,118,9311.59,"","2012-10-02","Other",1343]
["Rory Collins","2012-10-01T10:51:18","VISA ","Repeat Sale",175,175,9311.59,"","2012-10-02","Other",1518]
["Kirsten Hullinger","2012-10-01T10:51:22","VISA ","Repeat Sale",175,175,9311.59,"","2012-10-02","Other",1693]
["Morgan King","2012-10-01T10:51:31","VISA ","Repeat Sale",175,175,9311.59,"","2012-10-02","Other",1868]
["Xudi Li","2012-10-01T10:51:33","Discover ","Repeat Sale",290,290,9311.59,"","2012-10-02","Other",2158]
["Jordan Merrell","2012-10-01T10:51:37","VISA ","Repeat Sale",175,175,9311.59,"","2012-10-02","Other",2333]
["Sarah Metcalf","2012-10-01T10:51:39","VISA ","Repeat Sale",175,175,9311.59,"","2012-10-02","Other",2508]
["Melanie Newbold","2012-10-01T10:51:49","VISA ","Repeat Sale",175,175,9311.59,"","2012-10-02","Other",2683]
["Adrienne Ottley","2012-10-01T10:51:51","VISA ","Repeat Sale",290,290,9311.59,"","2012-10-02","Other",2973]
["Alyssa Rock","2012-10-01T10:51:55","VISA ","Repeat Sale",536.5,536.5,9311.59,"","2012-10-02","Other",3509.5]
["Shelley Williams","2012-10-01T11:30:14","VISA ","Repeat Sale",109.18,109.18,9311.59,"","2012-10-02","Other",3618.68]
["Shelley williams","2012-10-01T11:30:18","VISA ","Repeat Sale",109.15,109.15,9311.59,"","2012-10-02","Other",3727.83]
["Allison Sue Ranglack","2012-10-01T12:39:40","VISA ","Repeat Sale",118,118,9311.59,"","2012-10-02","Other",3845.83]
["angel D. Peterson","2012-10-01T12:39:42","VISA ","Repeat Sale",175,175,9311.59,"","2012-10-02","Other",4020.83]
["Brian Bradford","2012-10-01T12:39:51","VISA ","Repeat Sale",161.88,161.88,9311.59,"","2012-10-02","Other",4182.71]
["Brian Bradford","2012-10-01T12:39:57","VISA ","Repeat Sale",161.88,161.88,9311.59,"","2012-10-02","Other",4344.59]
["Amber Oakey","2012-10-01T12:39:59","VISA ","Repeat Sale",118,118,9311.59,"","2012-10-02","Other",4462.59]
["Michael Jones","2012-10-01T12:40:04","VISA ","Repeat Sale",175,175,9311.59,"","2012-10-02","Other",4637.59]
["Christopher Smith","2012-10-01T12:40:08","VISA ","Repeat Sale",175,175,9311.59,"","2012-10-02","Other",4812.59]
["Dusty Scott","2012-10-01T12:40:10","VISA ","Repeat Sale",118,118,9311.59,"","2012-10-02","Other",4930.59]
["Eun Ju Han","2012-10-01T12:40:14","VISA ","Repeat Sale",290,290,9311.59,"","2012-10-02","Other",5220.59]
["Eun Choi","2012-10-01T12:40:19","VISA ","Repeat Sale",175,175,9311.59,"","2012-10-02","Other",5395.59]
["Kathryn Larson","2012-10-01T12:40:20","VISA ","Repeat Sale",175,175,9311.59,"","2012-10-02","Other",5570.59]
["Erica Splattstoesser","2012-10-01T12:40:23","VISA ","Repeat Sale",118,118,9311.59,"","2012-10-02","Other",5688.59]
["Jennifer fong","2012-10-01T12:40:41","VISA ","Repeat Sale",175,175,9311.59,"","2012-10-02","Other",5863.59]
["Owen Witesman","2012-10-01T12:40:44","MasterCard","Repeat Sale",290,290,9311.59,"","2012-10-02","Other",6153.59]
["Janika Prestwich","2012-10-01T12:40:46","VISA ","Repeat Sale",60,60,9311.59,"","2012-10-02","Other",6213.59]
["Jennie Green","2012-10-01T12:40:48","VISA ","Repeat Sale",290,290,9311.59,"","2012-10-02","Other",6503.59]
["Jeremiah Hardman","2012-10-01T12:40:55","VISA ","Repeat Sale",175,175,9311.59,"","2012-10-02","Other",6678.59]
["Jessican Pennock","2012-10-01T12:40:56","VISA ","Repeat Sale",118,118,9311.59,"","2012-10-02","Other",6796.59]
["Maddalene diluigi","2012-10-01T12:40:59","VISA ","Repeat Sale",118,118,9311.59,"","2012-10-02","Other",6914.59]
["Julie Pogai","2012-10-01T12:41:01","MasterCard","Repeat Sale",175,175,9311.59,"","2012-10-02","Other",7089.59]
["Justin Case","2012-10-01T12:41:04","VISA ","Repeat Sale",118,118,9311.59,"","2012-10-02","Other",7207.59]
["Kaylene Barker","2012-10-01T12:41:06","VISA ","Repeat Sale",118,118,9311.59,"","2012-10-02","Other",7325.59]
["Kristy Nelson","2012-10-01T12:41:08","VISA ","Repeat Sale",175,175,9311.59,"","2012-10-02","Other",7500.59]
["Kristina Zeidner","2012-10-01T12:41:10","VISA ","Repeat Sale",175,175,9311.59,"","2012-10-02","Other",7675.59]
["Leah Hall","2012-10-01T12:41:24","VISA ","Repeat Sale",175,175,9311.59,"","2012-10-02","Other",7850.59]
["Linda Mitchell","2012-10-01T12:41:25","VISA ","Repeat Sale",175,175,9311.59,"","2012-10-02","Other",8025.59]
["Lori Walker","2012-10-01T12:41:29","MasterCard","Repeat Sale",175,175,9311.59,"","2012-10-02","Other",8200.59]
["Matthew Butrum","2012-10-01T12:41:32","VISA ","Repeat Sale",118,118,9311.59,"","2012-10-02","Other",8318.59]
["Maureen Huffaker","2012-10-01T12:41:34","VISA ","Repeat Sale",175,175,9311.59,"","2012-10-02","Other",8493.59]
["Aaron Ellis","2012-10-01T12:41:41","VISA ","Repeat Sale",290,290,9311.59,"","2012-10-02","Other",8783.59]
["Roger Barney","2012-10-01T12:41:45","VISA ","Repeat Sale",175,175,9311.59,"","2012-10-02","Other",8958.59]
["sharon lowe","2012-10-01T12:41:47","MasterCard","Repeat Sale",118,118,9311.59,"","2012-10-02","Other",9076.59]
["Shauna Lentz","2012-10-01T12:42:00","VISA ","Repeat Sale",60,60,9311.59,"","2012-10-02","Other",9136.59]
["Susan Johnson","2012-10-01T12:42:02","VISA ","Repeat Sale",175,175,9311.59,9311.59,"2012-10-02","Other",9311.59]
["Kasondra Hurst","2012-10-01T10:51:25","Amex ","Repeat Sale",290,290,1515.01,"","10/16/21012","Amex ",290]
["Alisa Liston","2012-10-01T10:51:34","Amex ","Repeat Sale",175,175,1515.01,"","10/16/21012","Amex ",465]
["Melanie Rice","2012-10-01T10:51:53","Amex ","Repeat Sale",118,118,1515.01,"","10/16/21012","Amex ",583]
["anna k findlay","2012-10-01T12:39:47","Amex ","Repeat Sale",175,175,1515.01,"","10/16/21012","Amex ",758]
["Jennifer Cragun","2012-10-01T12:40:50","Amex ","Repeat Sale",118,118,1515.01,"","10/16/21012","Amex ",876]
["Jenny burrough","2012-10-01T12:40:53","Amex ","Repeat Sale",118,118,1515.01,"","10/16/21012","Amex ",994]
["laura van der horst","2012-10-01T12:41:21","Amex ","Repeat Sale",118,118,1515.01,"","10/16/21012","Amex ",1112]
["Monica Kauwe","2012-10-01T12:41:38","Amex ","Repeat Sale",175,175,1515.01,"","10/16/21012","Amex ",1287]
["Viviana Ribeiro","2012-10-01T12:42:03","Amex ","Repeat Sale",118,118,1515.01,"","10/16/21012","Amex ",1405]
["Kelli Burgoyne","2012-10-01T12:49:29","Amex ","Repeat Sale",175,175,1515.01,1515.01,"10/16/21012","Amex ",1580,64.989999999999995]
["Devin Christensen","2012-10-02T02:11:47","VISA ","Repeat Sale",118,118,1165,"","2012-10-16","Other",118]
["Susan Johnson","2012-10-02T11:09:14","VISA ","Credit",105,-105,1165,"","2012-10-16","Other",13]
["Lisa Shurtliff","2012-10-02T14:27:12","VISA ","Sale",153,{"$f":"IF(OR(D71=\"Sale\",D71=\"Repeat Sale\"),E71,-E71)","v":153},1165,{"$f":"IF(G71=G72,\"\",G71)","v":""},"2012-10-16","Other",166]
["Coppelia Agle","2012-10-03T01:56:55","VISA ","Repeat Sale",175,175,1165,"","2012-10-16","Other",341]
["Jennifer Joylene Eyring","2012-10-08T09:10:59","MasterCard","Sale",36,36,1165,"","2012-10-16","Other",377]
["angel D. Peterson","2012-10-08T11:45:46","VISA ","Credit",175,-175,1165,"","2012-10-16","Other",202]
["Jina Tibbetts","2012-10-09T13:03:33","VISA ","Sale",330,330,1165,"","2012-10-16","Other",532]
["Gina Baxter","2012-10-10T09:58:01","VISA ","Sale",118,118,1165,"","2012-10-16","Other",650]
["Sarah K. Watkins","2012-10-10T16:14:03","VISA ","Sale",340,340,1165,"","2012-10-16","Other",990]
["Paige Drumm","2012-10-15T05:04:54","VISA ","Repeat Sale",175,175,1165,1165,"2012-10-16","Other",1165]
["Viviana Ribiero","2012-10-15T09:23:01","Amex ","Sale",57,57,223.07,"","2012-10-24","Amex ",57]
["Michelle Carlile","2012-10-17T10:39:01","Amex ","Sale",175,175,223.07,223.07,"2012-10-24","Amex ",232,8.93]
["Estrella Majeed","2012-10-17T09:27:07","VISA ","Reversal",350,-350,713.5,"","2012-10-24","Other",-350]
["Estrella Majeed","2012-10-17T09:29:12","VISA ","Sale",305,305,713.5,"","2012-10-24","Other",-45]
["Tiffani Richins","2012-10-17T10:09:12","VISA ","Sale",52.5,52.5,713.5,"","2012-10-24","Other",7.5]
["Monica Fox","2012-10-17T10:49:48","VISA ","Sale",236,236,713.5,"","2012-10-24","Other",243.5]
["Amber Leck","2012-10-17T12:16:57","VISA ","Sale",175,175,713.5,"","2012-10-24","Other",418.5]
["Lindsay Mayberry","2012-10-17T12:27:18","VISA ","Sale",118,118,713.5,"","2012-10-24","Other",536.5]
["Emily Olsen","2012-10-17T12:37:09","MasterCard","Sale",118,118,713.5,"","2012-10-24","Other",654.5]
["Kristen VanOrman","2012-10-17T14:23:43","VISA ","Sale",145,145,713.5,"","2012-10-24","Other",799.5]
["Emily Olsen","2012-10-18T12:03:55","MasterCard","Credit",118,-118,713.5,"","2012-10-24","Other",681.5]
["Denise Thompson","2012-10-22T09:24:34","VISA ","Sale",16,16,713.5,"","2012-10-24","Other",697.5]
["Alisa Liddiard","2012-10-22T10:57:10","VISA ","Sale",16,16,713.5,713.5,"2012-10-24","Other",713.5]
["Viviana Ribiero","2012-10-17T12:45:19","Amex ","Sale",57,57,null,"","*RNM"]
["Viviana Ribiero","2012-10-22T10:50:26","Amex ","Credit",57,-57,null,"","*RNM"]
["Britt Jones","2012-10-25T11:31:06","VISA ","Sale",175,175,null,"","*RNM"]
["Nina Ogles","2012-10-25T11:35:54","VISA ","Sale",280,280,null,"","*RNM"]
["Michael Nay","2012-10-25T11:39:06","VISA ","Sale",175,175,null,"","*RNM"]
["Shilo Crandall","2012-10-25T11:41:07","VISA ","Sale",175,175,null,"","*RNM"]
["Lori Curtis","2012-10-25T11:44:16","MasterCard","Sale",175,175,null,"","*RNM"]
["Pam Gosman","2012-10-25T11:55:32","MasterCard","Sale",280,280,null,"","*RNM"]
["Tiffani Richins","2012-10-25T11:59:10","VISA ","Sale",90,90,null,"","*RNM"]
["jera foster","2012-10-25T13:09:32","VISA ","Sale",105,105,null,"","*RNM"]
["Owen Witesman","2012-10-25T13:12:20","MasterCard","Repeat Sale",280,280,null,"","*RNM"]
[null,null,null,null,null,0,null,""]
[null,null,null,null,null,0,null,""]
["*Record Next Month",null,null,null,null,0,null,""]
[null,null,null,null,null,0,null,""]
[null,null,null,null,null,0,null,""]
[null,null,null,null,null,0,null,""]
[null,null,null,null,null,0,null,""]
[null,null,null,null,null,0,null,""]
[null,null,null,null,null,0,null,""]
[null,null,null,null,null,0,null,""]
[null,null,null,null,null,0,null,""]
[null,null,null,null,null,0,null,""]
[null,null,null,null,null,0,null,""]
[null,null,null,null,null,0,null,""]
[null,null,null,null,null,0,null,""]
[null,null,null,null,null,0,null,""]
[null,null,null,null,null,0,null,""]
[null,null,null,null,null,0,null,""]
[null,null,null,null,null,0,null,""]
[null,null,null,null,null,0,null,""]
[null,null,null,null,null,0,null,""]
[null,null,null,null,null,0,null,""]
[null,null,null,null,null,0,null,""]
[null,null,null,null,null,0,null,""]
[null,null,null,null,null,0,null,""]
[null,null,null,null,null,0,null,""]
[null,null,null,null,null,0,null,""]
[null,null,null,null,null,0,null,""]
[null,null,null,null,null,0,null,""]
[null,null,null,null,null,0,null,""]
[null,null,null,null,null,0,null,""]
[null,null,null,null,null,0,null,""]
[null,null,null,null,null,{"$f":"IF(OR(D135=\"Sale\",D135=\"Repeat Sale\"),E135,-E135)","v":0},null,{"$f":"IF(G135=G136,\"\",G135)","v":""}]
[null,null,null,null,null,0,null,""]
[null,null,null,null,null,0,null,""]
[null,null,null,null,null,0,null,""]
[null,null,null,null,null,0,null,""]
[null,null,null,null,null,0,null,""]
[null,null,null,null,null,0,null,""]
[null,null,null,null,null,0,null,""]
[null,null,null,null,null,0,null,""]
[null,null,null,null,null,0,null,""]
[null,null,null,null,null,0,null,""]
[null,null,null,null,null,0,null,""]
[null,null,null,null,null,0,null,""]
[null,null,null,null,null,0,null,""]
[null,null,null,null,null,0,null,""]
[null,null,null,null,null,0,null,""]
[null,null,null,null,null,0,null,""]
[null,null,null,null,null,0,null,""]
[null,null,null,null,null,0,null,""]
[null,null,null,null,null,0,null,""]
[null,null,null,null,null,0,null,""]
[null,null,null,null,null,0,null,""]
[null,null,null,null,null,0,null,""]
[null,null,null,null,null,0,null,""]
[null,null,null,null,null,0,null,""]
[null,null,null,null,null,0,null,""]
[null,null,null,null,null,0,null,""]
[null,null,null,null,null,0,null,""]
[null,null,null,null,null,0,null,""]
[null,null,null,null,null,0,null,""]
[null,null,null,null,null,0,null,""]
[null,null,null,null,null,0,null,""]
[null,null,null,null,null,0,null,""]
[null,null,null,null,null,0,null,""]
[null,null,null,null,null,0,null,""]
[null,null,null,null,null,0,null,""]
[null,null,null,null,null,0,null,""]
[null,null,null,null,null,0,null,""]
[null,null,null,null,null,0,null,""]
[null,null,null,null,null,0,null,""]
[null,null,null,null,null,0,null,""]
[null,null,null,null,null,0,null,""]
[null,null,null,null,null,0,null,""]
[null,null,null,null,null,0,null,""]
[null,null,null,null,null,0,null,""]
[null,null,null,null,null,0,null,""]
[null,null,null,null,null,0,null,""]
[null,null,null,null,null,0,null,""]
[null,null,null,null,null,0,null,""]
[null,null,null,null,null,0,null,""]
[null,null,null,null,null,0,null,""]
[null,null,null,null,null,0,null,""]
[null,null,null,null,null,0,null,""]
[null,null,null,null,null,0,null,""]
[null,null,null,null,null,0,null,""]
[null,null,null,null,null,0,null,""]
[null,null,null,null,null,0,null,""]
[null,null,null,null,null,0,null,""]
[null,null,null,null,null,0,null,""]
[null,null,null,null,null,0,null,""]
[null,null,null,null,null,0,null,""]
[null,null,null,null,null,0,null,""]
[null,null,null,null,null,0,null,""]
[null,null,null,null,null,0,null,""]
[null,null,null,null,null,{"$f":"IF(OR(D199=\"Sale\",D199=\"Repeat Sale\"),E199,-E199)","v":0},null,{"$f":"IF(G199=G200,\"\",G199)","v":""}]
[null,null,null,null,null,0,null,""]
[null,null,null,null,null,0,null,""]
[null,null,null,null,null,0,null,""]
[null,null,null,null,null,0,null,""]
[null,null,null,null,null,0,null,""]
[null,null,null,null,null,0,null,""]
[null,null,null,null,null,0,null,""]
[null,null,null,null,null,0,null,""]
[null,null,null,null,null,0,null,""]
[null,null,null,null,null,0,null,""]
[null,null,null,null,null,0,null,""]
[null,null,null,null,null,0,null,""]
[null,null,null,null,null,0,null,""]
[null,null,null,null,null,0,null,""]
[null,null,null,null,null,0,null,""]
[null,null,null,null,null,0,null,""]
[null,null,null,null,null,0,null,""]
[null,null,null,null,null,0,null,""]
[null,null,null,null,null,0,null,""]
[null,null,null,null,null,0,null,""]
[null,null,null,null,null,0,null,""]
[null,null,null,null,null,0,null,""]
[null,null,null,null,null,0,null,""]
[null,null,null,null,null,0,null,""]
[null,null,null,null,null,0,null,""]
[null,null,null,null,null,0,null,""]
[null,null,null,null,null,0,null,""]
[null,null,null,null,null,0,null,""]
[null,null,null,null,null,0,null,""]
[null,null,null,null,null,0,null,""]
[null,null,null,null,null,0,null,""]
[null,null,null,null,null,0,null,""]
[null,null,null,null,null,0,null,""]
[null,null,null,null,null,0,null,""]
[null,null,null,null,null,0,null,""]
[null,null,null,null,null,0,null,""]
[null,null,null,null,null,0,null,""]
[null,null,null,null,null,0,null,""]
[null,null,null,null,null,0,null,""]
[null,null,null,null,null,0,null,""]
[null,null,null,null,null,0,null,""]
[null,null,null,null,null,0,null,""]
[null,null,null,null,null,0,null,""]
[null,null,null,null,null,0,null,""]
[null,null,null,null,null,0,null,""]
[null,null,null,null,null,0,null,""]
[null,null,null,null,null,0,null,""]
[null,null,null,null,null,0,null,""]
[null,null,null,null,null,0,null,""]
[null,null,null,null,null,0,null,""]
[null,null,null,null,null,0,null,""]
[null,null,null,null,null,0,null,""]
[null,null,null,null,null,0,null,""]
[null,null,null,null,null,0,null,""]
[null,null,null,null,null,0,null,""]
[null,null,null,null,null,0,null,""]
[null,null,null,null,null,0,null,""]
[null,null,null,null,null,0,null,""]
[null,null,null,null,null,0,null,""]
[null,null,null,null,null,0,null,""]
[null,null,null,null,null,0,null,""]
[null,null,null,null,null,0,null,""]
[null,null,null,null,null,0,null,""]
[null,null,null,null,null,{"$f":"IF(OR(D263=\"Sale\",D263=\"Repeat Sale\"),E263,-E263)","v":0},null,{"$f":"IF(G263=G264,\"\",G263)","v":""}]
[null,null,null,null,null,0,null,""]
[null,null,null,null,null,0,null,""]
[null,null,null,null,null,0,null,""]
[null,null,null,null,null,0,null,""]
[null,null,null,null,null,0,null,""]
[null,null,null,null,null,0,null,""]
[null,null,null,null,null,0,null,""]
[null,null,null,null,null,0,null,""]
[null,null,null,null,null,0,null,""]
[null,null,null,null,null,0,null,""]
[null,null,null,null,null,0,null,""]
[null,null,null,null,null,0,null,""]
[null,null,null,null,null,0,null,""]
[null,null,null,null,null,0,null,""]
[null,null,null,null,null,0,null,""]
[null,null,null,null,null,0,null,""]
[null,null,null,null,null,0,null,""]
[null,null,null,null,null,0,null,""]
[null,null,null,null,null,0,null,""]
[null,null,null,null,null,0,null,""]
[null,null,null,null,null,0,null,""]
[null,null,null,null,null,0,null,""]
[null,null,null,null,null,0,null,""]
[null,null,null,null,null,0,null,""]
[null,null,null,null,null,0,null,""]
[null,null,null,null,null,0,null,""]
[null,null,null,null,null,0,null,""]
[null,null,null,null,null,0,null,""]
[null,null,null,null,null,0,null,""]
[null,null,null,null,null,0,null,""]
[null,null,null,null,null,0,null,""]
[null,null,null,null,null,0,null,""]
[null,null,null,null,null,0,null,""]
[null,null,null,null,null,0,null,""]
[null,null,null,null,null,0,null,""]
[null,null,null,null,null,0,null,""]
[null,null,null,null,null,0,null,""]
[null,null,null,null,null,0,null,""]
[null,null,null,null,null,0,null,""]
[null,null,null,null,null,0,null,""]
[null,null,null,null,null,0,null,""]
[null,null,null,null,null,0,null,""]
[null,null,null,null,null,0,null,""]
[null,null,null,null,null,0,null,""]
[null,null,null,null,null,0,null,""]
[null,null,null,null,null,0,null,""]
[null,null,null,null,null,0,null,""]
[null,null,null,null,null,0,null,""]
[null,null,null,null,null,0,null,""]
[null,null,null,null,null,0,null,""]
[null,null,null,null,null,0,null,""]
[null,null,null,null,null,0,null,""]
[null,null,null,null,null,0,null,""]
[null,null,null,null,null,0,null,""]
[null,null,null,null,null,0,null,""]
[null,null,null,null,null,0,null,""]
[null,null,null,null,null,0,null,""]
[null,null,null,null,null,0,null,""]
[null,null,null,null,null,0,null,""]
[null,null,null,null,null,0,null,""]
[null,null,null,null,null,0,null,""]
[null,null,null,null,null,0,null,""]
[null,null,null,null,null,0,null,""]
[null,null,null,null,null,{"$f":"IF(OR(D327=\"Sale\",D327=\"Repeat Sale\"),E327,-E327)","v":0},null,{"$f":"IF(G327=G328,\"\",G327)","v":""}]
[null,null,null,null,null,0,null,""]
[null,null,null,null,null,0,null,""]
[null,null,null,null,null,0,null,""]
[null,null,null,null,null,0,null,""]
[null,null,null,null,null,0,null,""]
[null,null,null,null,null,0,null,""]
[null,null,null,null,null,0,null,""]
[null,null,null,null,null,0,null,""]
[null,null,null,null,null,0,null,""]
[null,null,null,null,null,0,null,""]
[null,null,null,null,null,0,null,""]
[null,null,null,null,null,0,null,""]
[null,null,null,null,null,0,null,""]
[null,null,null,null,null,0,null,""]
[null,null,null,null,null,0,null,""]
[null,null,null,null,null,0,null,""]
[null,null,null,null,null,0,null,""]
[null,null,null,null,null,0,null,""]
[null,null,null,null,null,0,null,""]
[null,null,null,null,null,0,null,""]
[null,null,null,null,null,0,null,""]
[null,null,null,null,null,0,null,""]
[null,null,null,null,null,0,null,""]
[null,null,null,null,null,0,null,""]
[null,null,null,null,null,0,null,""]
[null,null,null,null,null,0,null,""]
[null,null,null,null,null,0,null,""]
[null,null,null,null,null,0,null,""]
[null,null,null,null,null,0,null,""]
[null,null,null,null,null,0,null,""]
[null,null,null,null,null,0,null,""]
[null,null,null,null,null,0,null,""]
[null,null,null,null,null,0,null,""]
[null,null,null,null,null,0,null,""]
[null,null,null,null,null,0,null,""]
[null,null,null,null,null,0,null,""]
[null,null,null,null,null,0,null,""]
[null,null,null,null,null,0,null,""]
[null,null,null,null,null,0,null,""]
[null,null,null,null,null,0,null,""]
[null,null,null,null,null,0,null,""]
[null,null,null,null,null,0,null,""]
[null,null,null,null,null,0,null,""]
[null,null,null,null,null,0,null,""]
[null,null,null,null,null,0,null,""]
[null,null,null,null,null,0,null,""]
[null,null,null,null,null,0,null,""]
[null,null,null,null,null,0,null,""]
[null,null,null,null,null,0,null,""]
[null,null,null,null,null,0,null,""]
[null,null,null,null,null,0,null,""]
[null,null,null,null,null,0,null,""]
[null,null,null,null,null,0,null,""]
[null,null,null,null,null,0,null,""]
[null,null,null,null,null,0,null,""]
[null,null,null,null,null,0,null,""]
[null,null,null,null,null,0,null,""]
[null,null,null,null,null,0,null,""]
[null,null,null,null,null,0,null,""]
[null,null,null,null,null,0,null,""]
[null,null,null,null,null,0,null,""]
[null,null,null,null,null,0,null,""]
[null,null,null,null,null,0,null,""]
[null,null,null,null,null,{"$f":"IF(OR(D391=\"Sale\",D391=\"Repeat Sale\"),E391,-E391)","v":0},null,{"$f":"IF(G391=G392,\"\",G391)","v":""}]
[null,null,null,null,null,0,null,""]
[null,null,null,null,null,0,null,""]
[null,null,null,null,null,0,null,""]
[null,null,null,null,null,0,null,""]
[null,null,null,null,null,0,null,""]
[null,null,null,null,null,0,null,""]
[null,null,null,null,null,0,null,""]
[null,null,null,null,null,0,null,""]
[null,null,null,null,null,0,null,""]
[null,null,null,null,null,0,null,""]
[null,null,null,null,null,0,null,""]
[null,null,null,null,null,0,null,""]
[null,null,null,null,null,0,null,""]
[null,null,null,null,null,0,null,""]
[null,null,null,null,null,0,null,""]
[null,null,null,null,null,0,null,""]
[null,null,null,null,null,0,null,""]
[null,null,null,null,null,0,null,""]
[null,null,null,null,null,0,null,""]
[null,null,null,null,null,0,null,""]
[null,null,null,null,null,0,null,""]
[null,null,null,null,null,0,null,""]
[null,null,null,null,null,0,null,""]
[null,null,null,null,null,0,null,""]
[null,null,null,null,null,0,null,""]
[null,null,null,null,null,0,null,""]
[null,null,null,null,null,0,null,""]
[null,null,null,null,null,0,null,""]
[null,null,null,null,null,0,null,""]
[null,null,null,null,null,0,null,""]
[null,null,null,null,null,0,null,""]
[null,null,null,null,null,0,null,""]
[null,null,null,null,null,0,null,""]
[null,null,null,null,null,0,null,""]
[null,null,null,null,null,0,null,""]
[null,null,null,null,null,0,null,""]
[null,null,null,null,null,0,null,""]
[null,null,null,null,null,0,null,""]
[null,null,null,null,null,0,null,""]
[null,null,null,null,null,0,null,""]
[null,null,null,null,null,0,null,""]
[null,null,null,null,null,0,null,""]
[null,null,null,null,null,0,null,""]
[null,null,null,null,null,0,null,""]
[null,null,null,null,null,0,null,""]
[null,null,null,null,null,0,null,""]
[null,null,null,null,null,0,null,""]
[null,null,null,null,null,0,null,""]
[null,null,null,null,null,0,null,""]
[null,null,null,null,null,0,null,""]
[null,null,null,null,null,0,null,""]
[null,null,null,null,null,0,null,""]
[null,null,null,null,null,0,null,""]
[null,null,null,null,null,0,null,""]
[null,null,null,null,null,0,null,""]
[null,null,null,null,null,0,null,""]
[null,null,null,null,null,0,null,""]
[null,null,null,null,null,0,null,""]
[null,null,null,null,null,0,null,""]
[null,null,null,null,null,0,null,""]
[null,null,null,null,null,0,null,""]
[null,null,null,null,null,0,null,""]
[null,null,null,null,null,0,null,""]
[null,null,null,null,null,{"$f":"IF(OR(D455=\"Sale\",D455=\"Repeat Sale\"),E455,-E455)","v":0},null,{"$f":"IF(G455=G456,\"\",G455)","v":""}]
[null,null,null,null,null,0,null,""]
[null,null,null,null,null,0,null,""]
[null,null,null,null,null,0,null,""]
[null,null,null,null,null,0,null,""]
[null,null,null,null,null,0,null,""]
[null,null,null,null,null,0,null,""]
[null,null,null,null,null,0,null,""]
[null,null,null,null,null,0,null,""]
[null,null,null,null,null,0,null,""]
[null,null,null,null,null,0,null,""]
[null,null,null,null,null,0,null,""]
[null,null,null,null,null,0,null,""]
[null,null,null,null,null,0,null,""]
[null,null,null,null,null,0,null,""]
[null,null,null,null,null,0,null,""]
[null,null,null,null,null,0,null,""]
[null,null,null,null,null,0,null,""]
[null,null,null,null,null,0,null,""]
[null,null,null,null,null,0,null,""]
[null,null,null,null,null,0,null,""]
[null,null,null,null,null,0,null,""]
[null,null,null,null,null,0,null,""]
[null,null,null,null,null,0,null,""]
[null,null,null,null,null,0,null,""]
[null,null,null,null,null,0,null,""]
[null,null,null,null,null,0,null,""]
[null,null,null,null,null,0,null,""]
[null,null,null,null,null,0,null,""]
[null,null,null,null,null,0,null,""]
[null,null,null,null,null,0,null,""]
[null,null,null,null,null,0,null,""]
[null,null,null,null,null,0,null,""]
[null,null,null,null,null,0,null,""]
[null,null,null,null,null,0,null,""]
[null,null,null,null,null,0,null,""]
[null,null,null,null,null,0,null,""]
[null,null,null,null,null,0,null,""]
[null,null,null,null,null,0,null,""]
[null,null,null,null,null,0,null,""]
[null,null,null,null,null,0,null,""]
[null,null,null,null,null,0,null,""]
[null,null,null,null,null,0,null,""]
[null,null,null,null,null,0,null,""]
[null,null,null,null,null,0,null,""]
[null,null,null,null,null,0,null,""]
[null,null,null,null,null,0,null,""]
[null,null,null,null,null,0,null,""]
[null,null,null,null,null,0,null,""]
[null,null,null,null,null,0,null,""]
[null,null,null,null,null,0,null,""]

{"sheet":"Home","index":1,"n_rows":60,"n_cols":10,"rows_kept":60,"cut":false,"hidden":false,"merged":[]}
[]
[]
[]
[]
[]
[]
[]
[]
[]
[]
[]
[]
[]
[]
[]
[]
[]
[]
[]
[]
[]
[]
[]
[]
[]
[]
[]
[]
[]
[]
[]
[]
[]
[]
[]
[]
[]
[]
[]
[]
[]
[]
[]
[]
[]
[]
["Other","Date","Pmt Type","Type","Amt"]
["Amex ","Date","Pmt Type","Type","Amt"]
["Name","Date","Pmt Type","Type","Amt"]
["Viviana Ribiero","2012-10-17T12:45:19","Amex ","Sale",57,"Lori Curtis","2012-09-27T13:19:40","MasterCard","Sale",245]
["Viviana Ribiero","2012-10-22T10:50:26","Amex ","Credit",57,"Pam Gosman","2012-09-27T13:22:20","MasterCard","Sale",105]
["Britt Jones","2012-10-25T11:31:06","VISA ","Sale",175,"Shilo Crandall","2012-09-27T13:26:04","VISA ","Sale",140]
["Nina Ogles","2012-10-25T11:35:54","VISA ","Sale",280,"Michael Nay","2012-09-27T13:27:34","VISA ","Sale",140]
["Michael Nay","2012-10-25T11:39:06","VISA ","Sale",175,"jera foster","2012-09-27T13:29:45","VISA ","Sale",175]
["Shilo Crandall","2012-10-25T11:41:07","VISA ","Sale",175,"Myra Hall","2012-09-27T13:32:42","MasterCard","Sale",105]
["Lori Curtis","2012-10-25T11:44:16","MasterCard","Sale",175,"Eva Witesman","2012-09-27T13:37:35","MasterCard","Sale",315]
["Pam Gosman","2012-10-25T11:55:32","MasterCard","Sale",280]
["Tiffani Richins","2012-10-25T11:59:10","VISA ","Sale",90]
["jera foster","2012-10-25T13:09:32","VISA ","Sale",105]
["Owen Witesman","2012-10-25T13:12:20","MasterCard","Repeat Sale",280]